[Event "Romanian Superleague 2022"]
[Site "Oradea"]
[Date "2022.09.26"]
[Round "6.2"]
[White "Nisipeanu, Liviu-Dieter"]
[Black "Ionescu, Constantin"]
[Result "1-0"]
[ECO "B33"]
[WhiteElo "2633"]
[BlackElo "2415"]
[Annotator "TA"]
[PlyCount "85"]
[EventDate "2022.09.21"]
[EventType "team-tourn"]
[EventCountry "ROU"]
[SourceTitle "playchess.com"]
[Source "ChessBase"]
[SourceQuality "1"]
[TimeControl "40/5400+30:1800+30"]

{[%evp 30,85,54,58,51,44,75,55,89,93,123,106,116,111,108,94,112,107,107,101,148,147,169,170,163,163,177,159,163,176,174,169,166,172,176,176,179,163,168,116,259,250,239,240,220,214,325,321,464,448,648,649,648,648,641,638,568,510]} 1. e4 {[%emt 0:00:12]} c5 {[%emt 0:01:27]} 2. Nf3 {[%emt 0:00:06]} Nc6 {[%emt 0:00:08]} 3. d4 {[%emt 0:01:34]} cxd4 {[%emt 0:00:41]} 4. Nxd4 {[%emt 0:00:05]} Nf6 {[%emt 0:00:05]} 5. Nc3 {[%emt 0:00:06]} e6 {[%emt 0:00:05]} 6. Ndb5 {[%emt 0:04:30]} d6 {[%emt 0:01:12]} 7. Bf4 {[%emt 0:00:06]} e5 {[%emt 0:00:07]} 8. Bg5 {[%emt 0:00:04]} a6 {[%emt 0:00:07]} 9. Na3 {[%emt 0:00:05]} b5 {[%emt 0:01:23]} 10. Nd5 {[%emt 0:00:43]} Be7 {[%emt 0:01:04]} 11. Bxf6 {[%emt 0:00:07]} Bxf6 {[%emt 0:00:11]} 12. c3 {[%emt 0:00:04]} O-O {[%emt 0:05:40]} 13. Nc2 {[%emt 0:00:09]} Bg5 {[%emt 0:04:59]} 14. a4 {[%emt 0:00:07]} bxa4 {[%emt 0:00:39]} 15. Rxa4 {[%emt 0:00:06]} Bb7 {[%emt 0:01:24] Recently 15...Rb8 got a lot of attention.} 16. Bc4 {[%emt 0:11:01]} a5 {[%emt 0:06:33] B33: Sicilian: Pelikan and Sveshnikov Variations.} 17. O-O {[%emt 0:13:25] [#]} Rb8 $146 {[%emt 0:01:40]} ({Predecessor:} 17... Ne7 18. Re1 Nc8 19. Qd3 Nb6 20. Nxb6 Qxb6 21. b4 axb4 22. Rxb4 Qc7 23. Rd1 Rfd8 24. Ne3 Bxe3 25. Qxe3 {1-0 (59) Rouda Essa,A (1874)-Hwass,Z (1386) Chennai 2022}) 18. Qd3 {[%emt 0:05:14]} Ba8 {[%emt 0:00:42] White is slightly better.} 19. b3 {[%emt 0:01:02]} Qc8 {[%emt 0:07:34]} 20. Na3 {[%emt 0:02:01][%cal Bc2a3,Ba3b5,Bb5d6][%mdl 32]} Bd8 {[%emt 0:00:50]} 21. Nb5 {[%emt 0:00:32]} Qd7 {[%emt 0:04:07]} 22. Ne3 {[%emt 0:06:48] White has more active pieces. Pair of Knights!} Ne7 {[%emt 0:01:52]} 23. Nxd6 {[%emt 0:05:39]} ({Don't play} 23. Qxd6 Qxd6 24. Nxd6 Bc7) 23... Bc6 {[%emt 0:05:00]} 24. Ra2 {[%emt 0:02:02]} Bc7 {[%emt 0:03:35]} (24... Nc8 $142 25. Nxc8 Qxd3 26. Bxd3 Rxc8) 25. Rd1 $16 {[%emt 0:02:50]} Rbd8 {[%emt 0:04:55][%cal Rd7d6] [#]} 26. Rad2 $1 {[%emt 0:09:52]} Qxd6 {[%emt 0:05:44]} 27. Qxd6 {[%emt 0:00:10]} Rxd6 {[%emt 0:00:07]} 28. Rxd6 {[%emt 0:00:04]} Bxd6 {[%emt 0:00:13]} 29. Rxd6 {[%emt 0:00:04] Strongly threatening Nf5.} Bxe4 {[%emt 0:00:09]} 30. f3 {[%emt 0:00:05]} Bc6 {[%emt 0:09:33] [#]} 31. Ng4 $1 {[%emt 0:03:17]} Ra8 {[%emt 0:00:38]} 32. Nxe5 {[%emt 0:00:42]} Be8 {[%emt 0:00:18]} 33. Kf2 {[%emt 0:07:01]} g6 {[%emt 0:03:40]} 34. Rb6 {[%emt 0:05:36]} (34. Nd7 $18) 34... Nc8 {[%emt 0:01:42] Loses the game.} (34... Kg7 $16 {was worth a try.} 35. Rb7 Kf8) 35. Ra6 $18 {[%emt 0:00:24]} Rxa6 {[%emt 0:00:56]} 36. Bxa6 {[%emt 0:00:05][%mdl 4096] Endgame KBN-KBN} Nb6 {[%emt 0:00:31]} 37. Ke3 {[%emt 0:01:28]} Kf8 {[%emt 0:03:55]} (37... Nd5+ $142 38. Kd4 Nf4) 38. Kd4 {[%emt 0:00:47]} Ke7 {[%emt 0:02:01]} (38... f6 $142 39. Nc4 a4) 39. Nc4 {[%emt 0:01:01] White is clearly winning.} Nxc4 {[%emt 0:02:08]} (39... Na8 $142 40. Nxa5 Kd6) 40. Kxc4 {[%emt 0:00:00]} ({Weaker is} 40. Bxc4 Kd6 41. b4 axb4 $18) 40... a4 {[%emt 0:00:00]} 41. bxa4 {[%emt 0:00:36]} Bxa4 {[%emt 0:00:17]} 42. Kc5 {[%emt 0:00:03]} g5 {[%emt 0:01:49]} 43. c4 {[%emt 0:00:58] Weighted Error Value: White=0.03 (flawless) /Black=0.30} 1-0

[Event "Romanian Superleague 2022"]
[Site "Oradea"]
[Date "2022.09.26"]
[Round "6.3"]
[White "Soltanici, Ruslan"]
[Black "Mendonca, Leon Luke"]
[Result "1/2-1/2"]
[ECO "B11"]
[WhiteElo "2333"]
[BlackElo "2558"]
[Annotator "TA"]
[PlyCount "52"]
[EventDate "2022.09.21"]
[EventType "team-tourn"]
[EventCountry "ROU"]
[SourceTitle "playchess.com"]
[Source "ChessBase"]
[SourceQuality "1"]
[TimeControl "40/5400+30:1800+30"]

{[%evp 10,52,18,16,29,10,60,26,24,21,28,29,42,14,30,29,27,30,21,-8,11,4,0,0,12,7,29,14,12,8,94,133,110,35,45,0,54,12,16,10,25,11,22,28,91]} 1. e4 {[%emt 0:00:07]} c6 {[%emt 0:00:57]} 2. Nc3 {[%emt 0:00:41]} d5 {[%emt 0:00:13]} 3. Nf3 {[%emt 0:00:18]} dxe4 {[%emt 0:00:25]} 4. Nxe4 {[%emt 0:00:09]} Nf6 {[%emt 0:00:08]} 5. Qe2 {[%emt 0:00:41]} Nxe4 {[%emt 0:00:26]} 6. Qxe4 {[%emt 0:00:07]} Qa5 {[%emt 0:00:56] B11: Caro-Kann: Two Knights Variation.} 7. Bd3 {[%emt 0:06:00]} Nd7 {[%emt 0:05:50]} ({Better is} 7... Na6 $11) 8. b4 {[%emt 0:04:42]} Qd5 {[%emt 0:08:36] [#]} 9. Qe3 $146 {[%emt 0:10:29]} ({Predecessor:} 9. Qe2 Nf6 10. Bc4 Qh5 11. Bb2 Bg4 12. b5 c5 13. O-O-O e6 14. h3 Bxf3 15. gxf3 {½-½ (109) Firouzja,A (2720)-Perez Ponsa,F (2560) Chess.com INT 2019}) 9... Nf6 {[%emt 0:12:25]} 10. c4 {[%emt 0:11:39]} Qd6 {[%emt 0:04:13]} 11. Rb1 {[%emt 0:05:30]} g6 {[%emt 0:02:16][%cal Of8h6]} 12. O-O {[%emt 0:12:27]} Bg7 {[%emt 0:00:28]} 13. Re1 {[%emt 0:02:39]} O-O {[%emt 0:02:51]} 14. b5 {[%emt 0:07:19]} cxb5 {[%emt 0:22:11]} (14... Ng4 {feels hotter.} 15. Qe2 Bd4 16. Rf1 Ne5) 15. Rxb5 {[%emt 0:02:31]} b6 {[%emt 0:01:57]} 16. Bf1 {[%emt 0:01:24]} Re8 {[%emt 0:02:33]} 17. d4 {[%emt 0:06:22]} Ba6 {[%emt 0:03:45]} 18. Rb3 {[%emt 0:01:19]} Qc7 {[%emt 0:13:00]} 19. Ne5 {[%emt 0:03:56]} Rad8 {[%emt 0:01:50]} (19... e6 $11) 20. Ra3 $16 {[%emt 0:12:34]} Bc8 {[%emt 0:02:17] [#]} 21. h3 {[%emt 0:00:25] Prevents Ng4. White is more active.} ({White should try} 21. Qf4 $1 $16) 21... Nd7 {[%emt 0:03:24]} 22. f4 {[%emt 0:00:48]} ({Don't go for} 22. Nxf7 $2 Kxf7 23. c5 Kg8 $19) 22... a5 {[%emt 0:01:24]} (22... Nxe5 $11 23. fxe5 Bf5) 23. Rc3 {[%emt 0:02:43]} e6 {[%emt 0:01:16]} 24. Bb2 {[%emt 0:02:04]} Bb7 {[%emt 0:00:59]} 25. Rcc1 {[%emt 0:00:25]} Nxe5 {[%emt 0:02:49]} 26. fxe5 {[%emt 0:00:47]} Rd7 {[%emt 0:03:53] Weighted Error Value: White=0.16 (very precise) /Black=0.16 (very precise)} (26... Qd7 $11 {keeps the balance.}) 1/2-1/2

[Event "Romanian Superleague 2022"]
[Site "Oradea"]
[Date "2022.09.26"]
[Round "6.4"]
[White "Ghimpu, Samuel-Timotei"]
[Black "Cosma, Ioan"]
[Result "1/2-1/2"]
[ECO "B89"]
[WhiteElo "2434"]
[BlackElo "2367"]
[Annotator "TA"]
[PlyCount "80"]
[EventDate "2022.09.21"]
[EventType "team-tourn"]
[EventCountry "ROU"]
[SourceTitle "playchess.com"]
[Source "ChessBase"]
[SourceQuality "1"]
[TimeControl "40/5400+30:1800+30"]

{[%evp 18,80,16,17,2,-11,20,-45,-47,-92,-85,-67,-8,-56,-65,-66,-63,-55,0,-2,-20,-39,-22,-29,-29,-37,-22,-37,-29,-30,-12,-57,3,5,15,0,19,0,0,0,10,0,0,0,8,0,0,0,0,0,0,-56,8,-21,-20,-20,-7,-18,0,-13,0,-12,0,0,0]} 1. e4 {[%emt 0:00:24]} c5 {[%emt 0:00:18]} 2. Nf3 {[%emt 0:00:14]} d6 {[%emt 0:00:27]} 3. d4 {[%emt 0:00:21]} Nf6 {[%emt 0:00:37]} 4. Nc3 {[%emt 0:01:05]} cxd4 {[%emt 0:00:10]} 5. Nxd4 {[%emt 0:00:02]} Nc6 {[%emt 0:00:07]} 6. Bc4 {[%emt 0:02:03]} e6 {[%emt 0:01:55]} 7. Be3 {[%emt 0:01:07]} a6 {[%emt 0:00:08]} 8. Bb3 {[%emt 0:00:10]} Qc7 {[%emt 0:00:29]} 9. Qe2 {[%emt 0:01:17]} Na5 $1 {[%emt 0:00:19] 9...Na5 scores better than 9...Be7.} 10. g4 {[%emt 0:00:55] Black should prevent g5.} h6 {[%emt 0:02:36] B89: Sicilian: Velimirovic Attack.} 11. f4 {[%emt 0:05:02]} Nxb3 {[%emt 0:06:28] [#]} (11... b5 $5 {[%cal Ra5b3]}) 12. Nxb3 $146 {[%emt 0:01:02]} (12. axb3 $11 e5 13. Nf5) ({Predecessor:} 12. axb3 Nd7 13. h4 Rb8 14. O-O-O h5 15. gxh5 Nf6 16. h6 gxh6 17. Rhf1 Be7 18. e5 dxe5 19. fxe5 Qxe5 {1-0 (43) Sukovic,A (2283)-Potpara,N (2370) Niksic 2021}) 12... b5 $15 {[%emt 0:01:31] White must now prevent ...b4. Black is slightly better.} 13. g5 {[%emt 0:07:07]} hxg5 {[%emt 0:00:18]} 14. fxg5 {[%emt 0:00:24]} Nd7 {[%emt 0:00:40]} (14... b4 $15 15. Nd5 Nxd5 16. exd5 e5) 15. g6 {[%emt 0:00:59]} (15. a3 $11) 15... Ne5 {[%emt 0:01:13]} 16. gxf7+ {[%emt 0:00:46]} Qxf7 {[%emt 0:00:24]} 17. O-O-O {[%emt 0:00:25]} Qf3 {[%emt 0:17:49]} (17... b4 $1 $15 18. Rhf1 Qh5 19. Qxh5+ Rxh5) 18. Qxf3 {[%emt 0:23:32]} Nxf3 {[%emt 0:00:09]} 19. Bf4 {[%emt 0:00:11]} b4 {[%emt 0:13:24]} 20. Na4 {[%emt 0:05:52]} e5 {[%emt 0:00:04]} 21. Nb6 {[%emt 0:02:47] Pair of Knights!} Rb8 {[%emt 0:01:24]} 22. Nxc8 {[%emt 0:00:07]} Rxc8 {[%emt 0:00:25]} 23. Bg3 {[%emt 0:03:28]} Be7 {[%emt 0:08:54]} 24. Rd5 {[%emt 0:14:59]} Kd7 {[%emt 0:07:35]} ({Better is} 24... g5 $15) 25. Rd3 $1 $11 {[%emt 0:08:38]} Ng5 {[%emt 0:05:54]} 26. Nd2 {[%emt 0:04:48]} (26. Bxe5 {is more complex.} Nxe4 27. Re1 Nf2 28. Rd4) 26... Nf7 {[%emt 0:02:00]} 27. a3 {[%emt 0:01:06]} bxa3 {[%emt 0:07:36]} 28. Rxa3 {[%emt 0:00:10]} Rc6 {[%emt 0:00:10]} 29. c3 {[%emt 0:05:57]} Bg5 {[%emt 0:08:47]} 30. Rf1 {[%emt 0:03:23]} Ke6 {[%emt 0:02:02]} 31. Kc2 {[%emt 0:00:31]} Bxd2 {[%emt 0:01:11]} 32. Kxd2 {[%emt 0:00:01]} Ng5 {[%emt 0:01:00]} 33. Kd3 {[%emt 0:00:29]} Rb8 {[%emt 0:03:33]} 34. b3 {[%emt 0:03:37] [#]} ({White should play} 34. h4 $11 Nh7 35. Ra2) 34... Nh7 {[%emt 0:00:57]} (34... Nxe4 $1 $15 35. Kxe4 Rxc3 36. Bxe5 Rb4+ 37. Bd4 d5+ 38. Kf4 Rxd4+ 39. Kg5 Rc6) 35. Rfa1 {[%emt 0:01:05] The position is equal.} Nf6 {[%emt 0:00:42][%cal Of6e4]} 36. Be1 {[%emt 0:00:28]} Rh8 {[%emt 0:01:23]} 37. Bg3 {[%emt 0:02:59]} Rb8 {[%emt 0:01:12][%cal Of6e4]} 38. Be1 {[%emt 0:00:32]} Rh8 {[%emt 0:00:14]} 39. Bg3 {[%emt 0:01:57]} Nh5 40. Rxa6 {[%emt 0:00:30]} Rxa6 {Weighted Error Value: White=0.14 (very precise) /Black=0.18 (very precise)} 1/2-1/2

[Event "Romanian Superleague 2022"]
[Site "Oradea"]
[Date "2022.09.26"]
[Round "6.5"]
[White "Itkis, Boris"]
[Black "Berescu, Alin-Mile"]
[Result "1/2-1/2"]
[ECO "A13"]
[WhiteElo "2332"]
[BlackElo "2440"]
[Annotator "TA"]
[PlyCount "28"]
[EventDate "2022.09.21"]
[EventType "team-tourn"]
[EventCountry "ROU"]
[SourceTitle "playchess.com"]
[Source "ChessBase"]
[SourceQuality "1"]
[TimeControl "40/5400+30:1800+30"]

{[%evp 12,28,41,3,37,38,28,38,31,16,19,0,0,0,0,0,0,-23,-34]} 1. Nf3 {[%emt 0:00:05]} Nf6 {[%emt 0:00:57]} 2. c4 {[%emt 0:00:07]} e6 {[%emt 0:00:42][%cal Be7e6,Be6e5][%mdl 32]} 3. g3 {[%emt 0:01:03]} d5 {[%emt 0:00:42]} 4. Bg2 {[%emt 0:00:16]} dxc4 {[%emt 0:02:03]} 5. Qa4+ {[%emt 0:00:43]} Nbd7 {[%emt 0:01:09]} 6. Qxc4 {[%emt 0:01:05]} a6 {[%emt 0:00:33]} 7. Qb3 {[%emt 0:01:40] [#]} e5 $146 {[%emt 0:13:09] A13: English Opening: 1...e6.} ({Predecessor:} 7... Rb8 8. O-O b5 9. d3 Bb7 10. Bg5 Be7 11. Nc3 O-O 12. a4 Nc5 13. Qc2 b4 14. Nd1 b3 15. Qc1 Nd5 16. Bxe7 Qxe7 {0-1 (36) Howell,D (2666)-Predke,A (2580) Riga 2021}) 8. Nc3 {[%emt 0:05:53]} Bc5 {[%emt 0:06:01]} 9. O-O {[%emt 0:01:18]} ({Reject} 9. d4 exd4 10. Nd5 O-O $15) 9... O-O {[%emt 0:00:13] White is slightly better.} 10. e3 {[%emt 0:12:16]} Ba7 {[%emt 0:06:00]} 11. d4 {[%emt 0:01:39] Prevents Nc5.} exd4 {[%emt 0:09:16]} 12. exd4 {[%emt 0:00:14]} c6 {[%emt 0:00:21]} 13. Bf4 {[%emt 0:12:50]} Nb6 {[%emt 0:01:55]} 14. Rad1 {[%emt 0:00:10]} Be6 {[%emt 0:54:29] Weighted Error Value: White=0.11 (very precise) /Black=0.04 (flawless)} 1/2-1/2

[Event "Romanian Superleague 2022"]
[Site "Oradea"]
[Date "2022.09.26"]
[Round "6.6"]
[White "Talu, Mircea"]
[Black "Bulau, Andrei-Cristian"]
[Result "1/2-1/2"]
[ECO "D17"]
[WhiteElo "2331"]
[BlackElo "2183"]
[Annotator "TA"]
[PlyCount "122"]
[EventDate "2022.09.21"]
[EventType "team-tourn"]
[EventCountry "ROU"]
[SourceTitle "playchess.com"]
[Source "ChessBase"]
[SourceQuality "1"]
[TimeControl "40/5400+30:1800+30"]

{[%evp 14,121,19,6,63,-21,43,35,46,31,40,36,103,103,89,80,125,83,112,112,118,133,207,208,204,209,223,227,244,235,228,225,206,139,143,141,202,168,285,277,299,295,358,336,535,296,299,292,295,286,280,175,201,181,191,189,193,183,155,89,60,27,49,51,56,53,57,0,0,0,0,0,0,0,0,0,0,0,0,0,0,0,0,0,0,0,0,0,0,0,0,0,0,0,0,0,0,0,0,0,0,0,0,0,0,0,0,0,0,0]} 1. d4 {[%emt 0:00:16]} d5 {[%emt 0:00:18]} 2. c4 {[%emt 0:00:24]} c6 {[%emt 0:00:04]} 3. Nc3 {[%emt 0:00:31]} Nf6 {[%emt 0:00:19]} 4. Nf3 {[%emt 0:00:30]} dxc4 {[%emt 0:00:05]} 5. a4 {[%emt 0:00:08]} Bf5 {[%emt 0:00:04]} 6. Ne5 {[%emt 0:00:09]} e6 {[%emt 0:00:14]} 7. f3 {[%emt 0:00:37]} Bb4 {[%emt 0:00:56]} 8. Nxc4 $1 {[%emt 0:01:00][%mdl 4] now scores much better than the old 8.e4.} Na6 {[%emt 0:03:22] D17: Slav Defence: 5 a4 Bf5: Lines with 6 Nh4 and 6 Ne5.} (8... O-O $11) 9. Kf2 {[%emt 0:14:34] [#]} (9. e4 $14 Bg6 10. Ne5) 9... O-O $146 {[%emt 0:02:17]} (9... c5 $11) ({Predecessor:} 9... c5 10. dxc5 Qxd1 11. Nxd1 Bc2 12. Nd6+ Ke7 13. Ne3 Bb3 14. Ndc4 Bxc5 15. Kg3 Rac8 {0-1 (33) Puchkov,A (2252)-Kavalenia,L (2289) Dimitrov 2007}) 10. e4 $14 {[%emt 0:03:15]} Bg6 {[%emt 0:02:08] White is slightly better.} 11. Be3 {[%emt 0:07:44]} Qe7 {[%emt 0:05:36]} 12. Na2 {[%emt 0:04:12]} c5 {[%emt 0:11:55]} (12... Nh5 $14) 13. Nxb4 $16 {[%emt 0:08:25]} cxd4 {[%emt 0:00:39] [#]} 14. Qxd4 {[%emt 0:09:51] Threatens to win with Nxa6.} Qxb4 {[%emt 0:15:23]} (14... Rfd8 15. Qe5) 15. Nd6 {[%emt 0:09:35]} Rfd8 {[%emt 0:08:32]} 16. Qxb4 {[%emt 0:02:18] White is more active.} Nxb4 {[%emt 0:00:03]} 17. Bc5 {[%emt 0:12:09]} a5 {[%emt 0:03:38]} (17... Nc2 $16 18. Rc1 b6 19. Rxc2 bxc5) 18. Bb5 $18 {[%emt 0:02:25]} (18. Nxb7 Rd2+ 19. Be2 Nd3+ 20. Ke3 Nxc5 21. Nxc5 (21. Kxd2 Nxb7 22. Rac1 Kf8 $11) 21... Rxb2 $14) 18... Na6 {[%emt 0:09:06]} 19. Ba3 {[%emt 0:02:29] This bishop pair is nice.} ({Not} 19. Nxb7 Rd2+ 20. Ke3 Nxc5 21. Kxd2 Nxb7 $11) 19... Nc7 {[%emt 0:00:56]} 20. Be2 {[%emt 0:00:42]} ({Don't take} 20. Nxb7 Nxb5 21. axb5 Rd3) 20... Rab8 {[%emt 0:02:58]} 21. Rac1 {[%emt 0:02:31]} Nfe8 {[%emt 0:01:32]} 22. Nxe8 {[%emt 0:06:32]} Nxe8 {[%emt 0:00:11]} 23. Rc5 {[%emt 0:00:21]} b6 {[%emt 0:02:33]} 24. Rc6 {[%emt 0:00:10]} h6 {[%emt 0:02:45]} (24... e5 $16 {might work better.} 25. Rd1 Rxd1 26. Bxd1 f6) 25. h4 {[%emt 0:01:21]} Nf6 {[%emt 0:03:55]} (25... f5 $142) 26. Ke3 {[%emt 0:02:18]} h5 {[%emt 0:08:02]} 27. Rhc1 {[%emt 0:00:31]} Nd7 {[%emt 0:00:25][%cal Bf6d7,Bd7e5,Be5c4][%mdl 32]} 28. Rd1 {[%emt 0:00:42]} f6 {[%emt 0:05:02]} (28... Nc5 {was necessary.} 29. Rxd8+ Rxd8 30. Bxc5 bxc5 31. Rxc5 Ra8) 29. Bb5 {[%emt 0:02:21]} Ne5 {[%emt 0:01:22]} 30. Rxd8+ {[%emt 0:00:10]} Rxd8 {[%emt 0:00:01]} 31. Rxb6 {[%emt 0:02:55]} ({But not} 31. Rxe6 Bf7 32. Rxb6 Nc4+ 33. Bxc4 Bxc4 $18) 31... Be8 {[%emt 0:00:34]} 32. Rxe6 {[%emt 0:02:01]} Bxb5 {[%emt 0:00:18]} 33. axb5 {[%emt 0:00:07][%mdl 4096] Endgame KRB-KRN} Nc4+ {[%emt 0:01:32]} 34. Kf4 {[%emt 0:00:17]} Rb8 {[%emt 0:00:17] [#] Against b6} 35. b6 {[%emt 0:02:49]} Nxb6 {[%emt 0:00:17]} 36. Kf5 {[%emt 0:01:15]} ({Better is} 36. e5) 36... Nc4 $16 {[%emt 0:01:03]} 37. Ra6 {[%emt 0:00:41]} (37. Rc6 $5 {[%cal Rc6c4]} Rb5+ 38. Ke6 Nxb2 39. Bd6 $14) 37... Rb5+ {[%emt 0:00:45]} 38. Ke6 {[%emt 0:00:34]} Nxb2 {[%emt 0:01:32]} 39. Ra8+ {[%emt 0:00:30]} Kh7 {[%emt 0:00:03]} 40. Bxb2 {[%emt 0:00:00]} (40. Bf8 $14) 40... Rxb2 $11 {[%emt 0:00:00] The position is equal.} 41. Rxa5 $14 {[%emt 0:01:07] KR-KR} Kg6 {[%emt 0:06:35]} 42. f4 {[%emt 0:22:52]} Rxg2 {[%emt 0:00:50]} 43. e5 {[%emt 0:03:34]} fxe5 {[%emt 0:08:50]} 44. Rxe5 {[%emt 0:00:52]} Rg4 {[%emt 0:00:19][%csl LRf4,LRh4]} 45. f5+ {[%emt 0:02:14]} Kh6 {[%emt 0:01:42]} 46. f6 {[%emt 0:00:40] aiming for f7.} gxf6 {[%emt 0:00:17]} 47. Kxf6 {[%emt 0:00:09]} Rf4+ {[%emt 0:00:19]} 48. Rf5 {[%emt 0:00:36]} Rxh4 {[%emt 0:00:04]} 49. Rf2 {[%emt 0:01:31]} Ra4 {[%emt 0:03:49]} 50. Kf5 {[%emt 0:00:10]} Ra8 {[%emt 0:03:05]} 51. Kf4 {[%emt 0:00:30]} Rg8 {[%emt 0:00:26]} 52. Kf3 {[%emt 0:00:30]} Rg4 {[%emt 0:00:41]} 53. Rg2 {[%emt 0:00:28]} Kg5 {[%emt 0:00:03]} 54. Rxg4+ {[%emt 0:00:18]} hxg4+ $11 {[%emt 0:00:02] KP-K} 55. Kg3 {[%emt 0:00:08][%cal Bf3g3,Bg3g2,Bg2f2][%mdl 32]} Kf5 {[%emt 0:00:02][%cal Bg5f5,Bf5f4,Bf4g4,Bg4f3,Bf3g3][%mdl 32]} 56. Kg2 {[%emt 0:00:10]} Kf4 {[%emt 0:00:03]} 57. Kf2 {[%emt 0:00:06]} g3+ {[%emt 0:00:04]} 58. Kg2 {[%emt 0:00:06]} Kg4 {[%emt 0:00:02]} 59. Kg1 {[%emt 0:00:09]} Kf3 {[%emt 0:00:07]} 60. Kf1 {[%emt 0:00:12]} g2+ {[%emt 0:00:10]} 61. Kg1 {[%emt 0:00:08]} Kg3 {[%emt 0:00:03] Black defended with fortune.  Weighted Error Value: White=0.14 (very precise) /Black=0.16 (very precise)} 1/2-1/2

[Event "Romanian Superleague 2022"]
[Site "Oradea"]
[Date "2022.09.26"]
[Round "6.7"]
[White "Marin, Mihail"]
[Black "Pranav Vijay"]
[Result "1/2-1/2"]
[ECO "A11"]
[WhiteElo "2457"]
[BlackElo "2265"]
[Annotator "TA"]
[PlyCount "45"]
[EventDate "2022.09.21"]
[EventType "team-tourn"]
[EventCountry "ROU"]
[SourceTitle "playchess.com"]
[Source "ChessBase"]
[SourceQuality "1"]
[TimeControl "40/5400+30:1800+30"]

{[%evp 12,45,19,18,40,37,50,57,72,23,27,22,35,24,36,0,32,35,33,27,37,14,14,0,10,7,7,11,16,16,16,16,15,16,17,16]} 1. Nf3 {[%emt 0:00:03]} Nf6 {[%emt 0:00:17]} 2. g3 {[%emt 0:00:37]} d5 {[%emt 0:00:14]} 3. Bg2 {[%emt 0:00:07]} c6 {[%emt 0:00:14]} 4. O-O {[%emt 0:00:12]} Bg4 {[%emt 0:00:11]} 5. c4 {[%emt 0:00:53]} Nbd7 {[%emt 0:00:45]} 6. cxd5 {[%emt 0:00:53]} cxd5 {[%emt 0:00:39]} 7. Qb3 {[%emt 0:01:56]} Qb6 {[%emt 0:08:41] A11: English Opening: 1...c6.} 8. Qxb6 {[%emt 0:00:12]} axb6 {[%emt 0:00:58]} 9. Nc3 {[%emt 0:00:50]} e6 {[%emt 0:05:22] White is slightly better.} 10. h3 {[%emt 0:04:14]} (10. Nd4 $16) 10... Bxf3 $11 {[%emt 0:03:37]} 11. Bxf3 {[%emt 0:00:05] [#]} Nc5 $146 {[%emt 0:02:00][%cal Bd7c5,Bc5b3,Bb3c1][%mdl 32]} ({Predecessor:} 11... Bb4 12. a3 Ke7 13. Rb1 Bd6 14. d4 Rac8 15. Bd2 Nb8 16. e4 dxe4 17. Nxe4 Nc6 18. Nxf6 gxf6 {1-0 (50) Dastan,B (2416)-Galojan,L (2317) Yerevan 2014}) 12. Rd1 {[%emt 0:10:28]} Kd7 {[%emt 0:06:44]} 13. d4 {[%emt 0:08:38]} Nb3 {[%emt 0:00:13]} 14. Rb1 {[%emt 0:00:11]} Nxc1 {[%emt 0:00:09]} 15. Rdxc1 {[%emt 0:00:16]} Bb4 {[%emt 0:01:33]} 16. Nb5 {[%emt 0:07:29]} (16. a3 $5 {[%cal Ra3b4]} Bxc3 17. bxc3 $11) 16... Rhc8 {[%emt 0:01:18] Inhibits Rc7+. The position is equal.} 17. a3 {[%emt 0:03:15]} Bd2 {[%emt 0:00:33]} 18. Rxc8 {[%emt 0:00:17]} Rxc8 {[%emt 0:00:06]} 19. e3 {[%emt 0:00:07] Threatens to win with Kf1.} Rc1+ {[%emt 0:00:58]} 20. Rxc1 {[%emt 0:00:05]} Bxc1 {[%emt 0:00:07]} 21. b3 {[%emt 0:02:25]} Ne8 {[%emt 0:00:17]} 22. Kf1 {[%emt 0:00:40]} Nc7 {[%emt 0:00:11]} 23. Nxc7 {[%emt 0:00:09] Weighted Error Value: White=0.10 (very precise) /Black=0.10 (very precise)} 1/2-1/2

[Event "Romanian Superleague 2022"]
[Site "Oradea"]
[Date "2022.09.26"]
[Round "6.8"]
[White "Grigore, George-Gabriel"]
[Black "Miron, Lucian-Costin"]
[Result "1/2-1/2"]
[ECO "D32"]
[WhiteElo "2455"]
[BlackElo "2498"]
[Annotator "TA"]
[PlyCount "35"]
[EventDate "2022.09.21"]
[EventType "team-tourn"]
[EventCountry "ROU"]
[SourceTitle "playchess.com"]
[Source "ChessBase"]
[SourceQuality "1"]
[TimeControl "40/5400+30:1800+30"]

{[%evp 24,35,39,31,55,38,44,45,52,0,39,0,50,0]} 1. d4 {[%emt 0:00:03]} d5 {[%emt 0:02:36]} 2. c4 {[%emt 0:00:16]} e6 {[%emt 0:00:12]} 3. Nc3 {[%emt 0:00:19]} c5 {[%emt 0:00:08]} 4. cxd5 {[%emt 0:06:25]} cxd4 {[%emt 0:00:13]} 5. Qa4+ {[%emt 0:00:38]} Bd7 {[%emt 0:00:17]} 6. Qxd4 {[%emt 0:00:06]} exd5 {[%emt 0:00:16]} 7. Qxd5 {[%emt 0:00:12]} Nf6 {[%emt 0:00:23]} 8. Qd1 {[%emt 0:00:51]} Bc5 {[%emt 0:00:38]} 9. e3 {[%emt 0:00:18]} Nc6 {[%emt 0:08:52]} 10. Nf3 {[%emt 0:00:17]} Qe7 {[%emt 0:00:17]} 11. Be2 {[%emt 0:01:00]} O-O {[%emt 0:10:45]} 12. O-O {[%emt 0:01:08]} Rfd8 {[%emt 0:00:17]} 13. a3 {[%emt 0:02:10]} Rac8 {[%emt 0:07:22] D32: Tarrasch Defence: Sidelines and lines without g3.} 14. Qc2 {[%emt 0:06:14] [#]} Ne5 $146 {[%emt 0:02:28]} ({Predecessor:} 14... Bd6 15. Rd1 Ne5 16. Nd4 Neg4 17. g3 Rc5 18. e4 Rh5 19. Bxg4 Nxg4 20. Nd5 Qe8 21. h4 Rc8 22. Qe2 Re5 23. f3 Ba4 24. Bf4 Bxd1 25. Rxd1 Rxd5 26. exd5 Bxf4 27. gxf4 {½-½ (30) Mamedyarov,S (2759)-Boruchovsky,A (2551) Chennai 2022}) 15. Nd4 {[%emt 0:10:47]} Nc6 {[%emt 0:00:32]} 16. Nf3 {[%emt 0:12:46]} Ne5 $1 {[%emt 0:00:14]} 17. Nd4 {[%emt 0:07:11]} Nc6 {[%emt 0:01:41]} 18. Nf3 {[%emt 0:10:24] White did not feel at home in the position after the opening.  Weighted Error Value: White=0.24 (precise) /Black=0.07 (flawless)} ({Better is} 18. Rd1 $14) 1/2-1/2